Cogmind - Beta 16 @@@ ROGUE MODE // 2025.11.03 @ 23:50:13 Player: Naughtyusername Result: Destroyed by Y-45 Defender with Beam Rifle Performance ------------- Evolutions (2) 1000 Regions Visited (4) 800 Robots Destroyed (1) 5 Value Destroyed (6) 6 Prototype IDs (0) 0 Alien Tech Used (0) 0 Bonus (7) 7 TOTAL SCORE: 1818 Bonus ------- Follower Combat Kills 7 Cogmind --------- Core Integrity 0/550 Matter 300/300 Energy 98/100 System Corruption 0% Temperature Cool (9) Movement Core (50) Location -8/Materials Parts ------- > --- POWER (1) -------- (None) > --- PROPULSION (4) --- (None) > --- UTILITY (4) ------ Signal Interpreter > --- WEAPON (2) ------- (None) > --- INVENTORY (5) ---- Ion Engine Improved Ion Engine Small Storage Unit Hacking Suite System Shield Peak State ------------ > --- POWER ------------ (None) > --- PROPULSION ------- Improved Hover Unit > --- UTILITY ---------- Signal Interpreter > --- WEAPON ----------- (None) > --- INVENTORY -------- Ion Engine Improved Ion Engine Small Storage Unit Hacking Suite System Shield [Rating: 4] Favorites ----------- Power None Propulsion Improved Hover Unit Hover Unit Improved Hover Unit Utility Signal Interpreter Device Seismic Detector Processor Signal Interpreter Weapon Mining Laser Special Weapon Mining Laser Build | -11 -10 -10 -9 -8 ------- Run | Yrd Mat Min Mat Mat Slots Evolved 4 | . . . 2 2 Power . | . . . . . Propulsion 2 | . . . 1 1 Utility 2 | . . . 1 1 Weapon . | . . . . . Parts Attached 4 | . 1 2 1 . Power . | . . . . . Engine . | . . . . . Core . | . . . . . Reactor . | . . . . . Propulsion 1 | . . . 1 . Treads . | . . . . . Leg . | . . . . . Wheel . | . . . . . Hover 1 | . . . 1 . Flight . | . . . . . Utility 2 | . 1 1 . . Device 1 | . . 1 . . Storage . | . . . . . Processor 1 | . 1 . . . Hackware . | . . . . . Protection . | . . . . . Artifact . | . . . . . Weapon 1 | . . 1 . . Energy Gun . | . . . . . Energy Cannon . | . . . . . Ballistic Gun . | . . . . . Ballistic Cannon . | . . . . . Launcher . | . . . . . Special Weapon 1 | . . 1 . . Impact Weapon . | . . . . . Slashing Weapon . | . . . . . Piercing Weapon . | . . . . . Special Melee Weapon . | . . . . . Unidentified Prototypes . | . . . . . Parts Lost 3 | . . 1 2 . Power . | . . . . . Propulsion 1 | . . . 1 . Utility 1 | . . . 1 . Weapon 1 | . . 1 . . Highest Loss Streak 1 | . . 1 1 . To Critical Strikes . | . . . . . Average Backups 4 | 2 3 4 5 5 Power 2 | 1 2 2 2 2 Propulsion . | . . . . . Utility 1 | . 1 1 3 3 Weapon . | . . . . . Tool/Special . | . . . . . Unused Backups 6 | . . 1 . 5 Power 3 | . . 1 . 2 Propulsion . | . . . . . Utility 3 | . . . . 3 Weapon . | . . . . . Tool/Special . | . . . . . Average Slot Usage (%) 21 | . 9 28 15 9 Device 6 | . . 9 2 . Processor 12 | . 9 14 11 9 Special Weapon 2 | . . 4 . . Peak Build Rating 4 | . 1 3 4 2 Average Rating 2 | . . 2 2 2 On Entrance 1 | . . 1 3 2 Avg Prop Armor Cover (%) . | . . . . . Naked Turns 14 | . 14 . . . Heaviest Build 2 | . . 2 1 . Greatest Support 7 | 3 3 3 7 3 Greatest Overweight (x) . | . . . . . Average Overweight (x) . | . . . . . Largest Inventory Capacity 5 | 5 5 5 5 5 Average Capacity 5 | 5 5 5 5 5 Most Carried 5 | 3 3 5 5 5 Average Carried 4 | 2 3 4 5 5 Final Capacity 5 | 5 5 5 5 5 Final Carried 5 | 3 3 5 5 5 Class Distribution -------------------- 100% | Mutant Dominant Class ---------------- Mutant | -10/Materials Mutant | -10/Mines Mutant | -9/Materials Mutant | -8/Materials Resources | -11 -10 -10 -9 -8 ----------- Run | Yrd Mat Min Mat Mat Matter Collected 230 | 200 . 30 . . Remotely . | . . . . . Salvage Created 38 | . . 38 . . Parts 2 | . . 2 . . Haulers Intercepted . | . . . . . Recyclers Shooed . | . . . . . Parts Field Recycled . | . . . . . Retrieved Matter . | . . . . . Parts Self-Destructed . | . . . . . Prevented . | . . . . . Parts Restored . | . . . . . Kills | -11 -10 -10 -9 -8 ------- Run | Yrd Mat Min Mat Mat Combat Hostiles Destroyed . | . . . . . Classes Destroyed 1 | . . 1 . . Recycler 1 | . . 1 . . Best Kill Streak 1 | . . 1 . . Combat Bots Only . | . . . . . Max Kills in Single Turn 1 | . . 1 . . Gunslinging . | . . . . . Exploded . | . . . . . Melee . | . . . . . Uniques/NPCs Destroyed . | . . . . . Combat | -11 -10 -10 -9 -8 -------- Run | Yrd Mat Min Mat Mat Hostile Shots Fired 122 | . 21 3 23 75 Missed 44 | . 5 1 8 30 Hits 78 | . 16 2 15 45 Melee 1 | . . . 1 . Projectile 77 | . 16 2 14 45 Critical Strikes 1 | . . . . 1 Damage Taken 948 | . 164 43 189 552 Core 842 | . 154 3 134 551 Absorbed by Shields . | . . . . . Core Remaining (%) 67 | 100 . 37 66 . Volleys Fired 8 | . . 8 . . Largest 1 | . . 1 . . Hottest 100 | . . 100 . . Shots Fired 8 | . . 8 . . Gun . | . . . . . Cannon . | . . . . . Launcher . | . . . . . Special 8 | . . 8 . . Kinetic . | . . . . . Thermal 8 | . . 8 . . Explosive . | . . . . . Electromagnetic . | . . . . . Robot Hit Streak 2 | . . 2 . . Robot Miss Streak 2 | . . 2 . . Penetration Max . | . . . . . Secondary Targets . | . . . . . Shots Hit Robots 2 | . . 2 . . Core Hits 2 | . . 1 . 1 Critical Kills . | . . . . . Critical Parts Destroyed . | . . . . . Critical Strikes . | . . . . . Melee Attacks . | . . . . . Impact . | . . . . . Slashing . | . . . . . Piercing . | . . . . . Sneak Attacks . | . . . . . Combat Hostiles . | . . . . . Follow-up Attacks . | . . . . . Damage Inflicted 66 | . . 62 . 4 Guns . | . . . . . Cannons . | . . . . . Explosions . | . . . . . Melee . | . . . . . Ramming 18 | . . 14 . 4 Kinetic . | . . . . . Thermal 48 | . . 48 . . Explosive . | . . . . . Electromagnetic . | . . . . . Impact . | . . . . . Slashing . | . . . . . Piercing . | . . . . . Highest Corruption . | . . . . . Average Corruption . | . . . . . Corruption Purged . | . . . . . Corruption Blocked . | . . . . . Overload Shots . | . . . . . Overflow Damage . | . . . . . Projectiles . | . . . . . Explosions . | . . . . . Melee . | . . . . . Knockbacks . | . . . . . Impact . | . . . . . Kinetic . | . . . . . Secondary . | . . . . . Self-Inflicted Damage 7 | . . 6 . 1 Shots . | . . . . . Rammed 7 | . . 4 . 3 Targets Rammed 7 | . . 4 . 3 Kicked . | . . . . . Crushed . | . . . . . Highest Temperature . | . . . . . Average Temperature . | . . . . . Received Heat Transfer 327 | . 66 9 54 198 Siege Activations . | . . . . . Martial Activations . | . . . . . Shielding Activations . | . . . . . Robots Disrupted . | . . . . . Combat Hostiles . | . . . . . Robots Corrupted . | . . . . . Combat Hostiles . | . . . . . Parts Fried . | . . . . . Impact Corruptions . | . . . . . Robots Melted . | . . . . . Combat Hostiles . | . . . . . Parts Melted . | . . . . . Heat Transferred 100 | . . 100 . . Parts Sabotaged . | . . . . . Parts Stolen . | . . . . . Parts Stripped . | . . . . . Power Chain Reactions . | . . . . . Alert | -11 -10 -10 -9 -8 ------- Run | Yrd Mat Min Mat Mat Maximum Alert Level . | . . . . . Low Security (%) 100 | 100 100 100 100 100 Level 1 . | . . . . . Level 2 . | . . . . . Level 3 . | . . . . . Level 4 . | . . . . . Level 5 . | . . . . . High Security . | . . . . . Max Security . | . . . . . Peak Influence 75 | . 15 53 8 75 Initial 5 | . . 5 . . Average 12 | . 1 12 1 28 Influence Increases 189 | . 15 91 8 75 Destroy 0b10 Robot/C 40 | . . 40 . . Destroy 0b10 Robot/NC 5 | . . 5 . . Destroy Leader 10 | . . 10 . . Allied During Kill 1 | . . 1 . . Successful Hack 8 | . . . 8 . Destroy Structure 5 | . . 5 . . Lose Combat Pursuer 120 | . 15 30 . 75 Influence Decreases 134 | . . 106 8 20 Entered New Map 10 | . . 10 . . Time Decay 114 | . . 86 8 20 Lost Part 10 | . . 10 . . Squads Dispatched 2 | . . . . 2 Investigation . | . . . . . Extermination . | . . . . . Reinforcement 2 | . . . . 2 Assault . | . . . . . Garrison . | . . . . . Intercept . | . . . . . Searches Triggered . | . . . . . Construction Impeded 1 | . . . . 1 Haulers Reinforced . | . . . . . Active Scanning Responses . | . . . . . Cargo Convoy Interrupts . | . . . . . Stealth | -11 -10 -10 -9 -8 --------- Run | Yrd Mat Min Mat Mat Distress Signals 2 | . 1 . . 1 Communications Jammed . | . . . . . Distress Signals . | . . . . . Times Spotted 42 | . 7 6 11 18 Peak Tracking Total 12 | . 7 5 11 12 Tactical Retreats 3 | . 1 1 . 1 Traps | -11 -10 -10 -9 -8 ------- Run | Yrd Mat Min Mat Mat Traps Triggered . | . . . . . Indirectly . | . . . . . Trap Hack Attempts . | . . . . . Triggered . | . . . . . Disarmed . | . . . . . Reprogrammed . | . . . . . Reused . | . . . . . Traps Extracted . | . . . . . Installed . | . . . . . Triggered . | . . . . . Machines | -11 -10 -10 -9 -8 ---------- Run | Yrd Mat Min Mat Mat Machines Disabled . | . . . . . Max in Single Turn . | . . . . . Machines Repaired . | . . . . . Machines Dismantled . | . . . . . Machines Sabotaged . | . . . . . Overloaded Fab Kills . | . . . . . Hacking | -11 -10 -10 -9 -8 --------- Run | Yrd Mat Min Mat Mat Machines Accessed 4 | . . 1 3 . Terminals 3 | . . . 3 . Fabricators . | . . . . . Repair Stations . | . . . . . Recycling Units . | . . . . . Scanalyzers . | . . . . . Garrison Access . | . . . . . Total Hacks 9 | . . 1 8 . Successful 6 | . . 1 5 . Failed 3 | . . . 3 . Catastrophic . | . . . . . Database Lockouts . | . . . . . Manual 8 | . . . 8 . Terminals 8 | . . . 8 . Fabricators . | . . . . . Repair Stations . | . . . . . Recycling Units . | . . . . . Scanalyzers . | . . . . . Garrison Access . | . . . . . Terminal Hacks 2 | . . 1 1 . Open Door 1 | . . 1 . . Terminal Index 1 | . . . 1 . Fabricator Hacks . | . . . . . Repair Station Hacks . | . . . . . Recycling Unit Hacks . | . . . . . Scanalyzer . | . . . . . Garrison Access Hacks . | . . . . . Unauthorized Hacks 4 | . . . 4 . Terminals 4 | . . . 4 . Botnet 1 | . . . 1 . Skim 3 | . . . 3 . Fabricators . | . . . . . Repair Stations . | . . . . . Recycling Units . | . . . . . Scanalyzers . | . . . . . Garrison Access . | . . . . . Data Cores Recovered . | . . . . . Used . | . . . . . Hacking Detections 3 | . . . 3 . Full Trace Events . | . . . . . Feedback Events . | . . . . . Feedback Blocked . | . . . . . Robot Schematics Acquired . | . . . . . Robots Built . | . . . . . Authchips . | . . . . . Time . | . . . . . Total Robot Build Rating . | . . . . . Part Schematics Acquired . | . . . . . Parts Built . | . . . . . Authchips . | . . . . . Time . | . . . . . Total Part Build Rating . | . . . . . Part Studies Acquired . | . . . . . Parts Repaired . | . . . . . Time . | . . . . . Parts Recycled . | . . . . . Recycled Matter . | . . . . . Retrieved Matter . | . . . . . Retrieved Components . | . . . . . Parts Scanalyzed . | . . . . . Part Schematics Acquired . | . . . . . Parts Damaged . | . . . . . Bothacking | -11 -10 -10 -9 -8 ------------ Run | Yrd Mat Min Mat Mat Used RIF Installer . | . . . . . Robots Hacked . | . . . . . Non-combat . | . . . . . Combat . | . . . . . Robot Hacks Applied . | . . . . . Relay Couplers Released . | . . . . . Fabnet Peak Effective % . | . . . . . Robots Rewired . | . . . . . Allies Hacked . | . . . . . Hacks Repelled . | . . . . . Allies | -11 -10 -10 -9 -8 -------- Run | Yrd Mat Min Mat Mat Total Allies 1 | . . 1 . . Largest Group 1 | . . 1 . . Highest-Rated Group 31 | . . 31 . . Highest-Rated Ally 31 | . . 31 . . Total Orders . | . . . . . Ally Attacks 22 | . . 22 . . Total Damage 252 | . . 252 . . Kills 3 | . . 3 . . Allies Corrupted . | . . . . . Allies Melted . | . . . . . Intel | -11 -10 -10 -9 -8 ------- Run | Yrd Mat Min Mat Mat Active Infowar (turns) 273 | . . 260 13 . Seismic 273 | . . 260 13 . Robot Analysis Total . | . . . . . Derelict Logs Recovered 3 | . . 3 . . Drone Launches . | . . . . . Drone Recoveries . | . . . . . Exploration | -11 -10 -10 -9 -8 ------------- Run | Yrd Mat Min Mat Mat Turns Passed 601 | 21 49 368 78 85 Spaces Moved 1038 | 36 94 591 153 164 Core 1036 | 36 94 591 151 164 Treads . | . . . . . Legs . | . . . . . Wheels . | . . . . . Hover 2 | . . . 2 . Flight . | . . . . . Fastest Speed 50 | 50 50 50 50 50 Average Speed 50 | 50 50 50 50 50 Slowest Speed 60 | 50 50 50 60 50 Overloaded Moves . | . . . . . Propulsion Burnouts . | . . . . . Robots Hopped . | . . . . . Potential Cave-ins . | . . . . . Cave-ins Triggered . | . . . . . Exploration Rate (%) 35 | 3 30 92 20 34 Regions Visited 4 Branch Regions 1 Pre-discovered Areas 2 | . . 2 . . Known Exits Taken 3 | . 1 1 1 . Unknown Exits Taken 1 | 1 . . . . Scrap Searched 1 | . . 1 . . Spaces Dug 3 | . . 3 . . Terrain Destroyed 6 | . . 6 . . Melee . | . . . . . Projectile 6 | . . 6 . . AOE . | . . . . . Terrain Rammed . | . . . . . Walls Destroyed . | . . . . . Machines Disabled . | . . . . . Actions | -11 -10 -10 -9 -8 --------- Run | Yrd Mat Min Mat Mat Total 1090 | 38 94 638 153 167 Wait 29 | . . 29 . . Move 1034 | 35 93 590 152 164 Hop . | . . . . . Pick Up 7 | 3 . 4 . . Fast Attach 3 | . 1 1 1 . Attach 1 | . . 1 . . Detach . | . . . . . Swap . | . . . . . Drop 1 | . . 1 . . Fire 8 | . . 8 . . Melee . | . . . . . Ram 7 | . . 4 . 3 Kick . | . . . . . Crush . | . . . . . Escape Stasis . | . . . . . Rewire . | . . . . . Trap . | . . . . . Miscellaneous . | . . . . . Route ------- -11/Scrapyard -10/Materials (discovered 2 exits: *Mat / *Min) -10/Mines (discovered 3 exits: *Mat x2 / [*Exi]) -9/Materials -8/Materials History --------- Turn | Location | Event 11 | -11/Scrapyard | Discovered new exit (range 14) 22 | -11/Scrapyard | Entered Materials 63 | -10/Materials | Core integrity fell below 50% 63 | -10/Materials | Discovered new exit (range 10) 66 | -10/Materials | Discovered new exit (range 10) 70 | -10/Materials | Identified exit to Mines 71 | -10/Materials | Entered Mines 78 | -10/Mines | Received a Mining Laser from a helpful Derelict 97 | -10/Mines | Assembled infested the area 175 | -10/Mines | Joined a pair of Derelicts in attacking an 0b10 outpost 294 | -10/Mines | Learned Materials stockpile data 295 | -10/Mines | Discovered new exit (range 8) 298 | -10/Mines | Identified exit to Materials 314 | -10/Mines | Build established: Mutant 331 | -10/Mines | Discovered exit to Materials (range 7) 336 | -10/Mines | Met a Derelict who couldn't figure out how to use a Trap Extractor 361 | -10/Mines | Learned location of Mines (-9) 408 | -10/Mines | Deemed a non-threat by the Exiles lab entrance 409 | -10/Mines | Discovered new exit (range 5) 439 | -10/Mines | Entered Materials 439 | -9/Materials | Evolved 2 slots: Propulsion x1, Utility x1 512 | -9/Materials | Discovered new exit (range 6) 514 | -9/Materials | Identified exit to Materials 517 | -9/Materials | Entered another Materials area 517 | -8/Materials | Evolved 2 slots: Propulsion x1, Utility x1 560 | -8/Materials | Core integrity fell below 50% 574 | -8/Materials | Core integrity fell below 20% 602 | -8/Materials | Destroyed by Y-45 Defender with Beam Rifle Last Messages --------------- GOAL=ESCAPE 00518_ T-07 Excavator is excavating. 00536_ Critical hit (Burn: +37). 00545_ W-25 Informer sends out distress signal. 00552_ K-01 Serf collects debris. 00552_ K-01 Serf destroyed. 00556_ R-06 Scavenger collects Lgt. Ion Engine. 00563_ K-01 Serf collects debris. 00568_ Slammed into O-16 Technician. 00568_ Signal Interpreter broken. 00568_ Destabilizing: Short circuit. 00574_ K-01 Serf collects debris. 00574_ T-07 Excavator is excavating. 00575_ Slammed into U-05 Engineer. 00575_ ALERT: Construction progress impeded, dispatching reinforcements to local area. 00578_ T-07 Excavator is excavating. 00579_ Slammed into K-01 Serf. 00587_ ALERT: Hostiles spotted, dispatching reinforcements to Terminal M011. Map ----- +----------------------------------------------------+ | #? #???????# #?????+ #??? | | ?#? [ #???????# #?????# #??? | | ????########???????# #?????# ! #??? | | ???????????????????? ??????## ##??? | | ???????????????????? ???????# #???? | | ???????????????????# ???????# #???? | | ???????????????????# ???????# #???? | | ???????????????????# ######## ###?? | | ???????????????????# #?? | | ???????????????????# #?? | | ???????????????????# #?? | | ???????????????????# """ #?? | | ???????????????????# """"" #?? | | ???????????????????# """"" [ #?? | | ""?????????????????# """"" #?? | | "" ?#??????????????# """ ##?? | | "" #??????????????# #??? | | "" #??????????????+ #??? | | ########???????# #??? | | # #???????# #??? | | # #???????# #??? | | ??? # """ #???????# ##### #??? | | ????# "R #???????# #######+#+###? | | ????# """ !#???????# + # | | ?????? ????????##### # | | ########+###########???# @ # | | #???# ] # | | #???# """"" # | | #???# """"" # | | ########## ####???# """"????? | | #???????? ##??????# ????? | | !#???????##????????# ???? | | !!!!##?????????????????# ???? | | #####??????????????????# "???? | | ???????????????????????# ! "???? | | ???????????????????????####Y#####???? | | ???????????????????????????##???????? | | ????????????????????????????????????? | | ????????????????????????????????????? | | ????????????????????????????????????? | | | | | | | | | | | | | | | | | | | | | +----------------------------------------------------+ Best States ------------- Heat Dissipation 31 Energy Generation 5 Energy Capacity 100 Matter Stores 300 Matter Capacity 300 Sight Range 16 Terrain Scan Density 10 Evasion (%) 50 Item Schematics ----------------- None Robot Schematics ------------------ None Fabricated ------------ Nothing Repaired ---------- Nothing Studied --------- None Alien Tech Used ----------------- None Achievements -------------- None Challenges ------------ None Game ------ Seed BurstPlatingBarrier Manual? 0 Play Time 00:06:21 Cumulative 497.3 hours Start 2025.11.03 @ 23:44:38 End 2025.11.03 @ 23:50:13 Sessions 1 Manual Loads 0 Difficulty Rogue Special Mode None Game No. 265 Rogue 265 Adventurer 0 Explorer 0 Win Type - Total 22 Types 13/1/5/1/0/0/0/1/1/0 Lore% 94 Gallery% 87 Achievement% 79 Wizard Run 0 Options --------- Layout 2 ASCII 0 Keyboard 1 Movement Vi Keybinds 0 Fullscreen 1 Font 28/Cog Map View 50x52 Zoom Use 0% Tactical HUD 1 Map Filters NONE Filters NONE Steam 1 RUN: 328d9e73-ec4a-4d3a-bb20-d8e10be44366